bitfinex/quotes_ETHUSD_20251017
["timestamp","ask_amount","ask_price","bid_price","bid_amount"]
[1760710310684,0.002,3775.9,3775.7,2.78049834]
[1760710310881,0.002,3775.9,3775.8,3.13422981]
[1760710311222,0.002,3775.9,3775.8,3.10774536]
[1760710311518,0.002,3775.9,3775.8,6.16922981]
[1760710311687,0.002,3775.9,3775.8,6.14274536]
[1760710311899,0.002,3775.9,3775.8,11.60458536]
[1760710312101,0.002,3775.9,3775.8,14.28018897]
[1760710312282,0.002,3775.9,3775.8,14.78178897]
[1760710312610,1e-08,3776.3,3776.2,14.88933982]
[1760710312780,1e-08,3776.3,3776.2,16.61733982]
[1760710312984,0.002,3778.4,3776.6,3.28148434]
[1760710313226,0.002,3778.4,3776.6,35.32102828]
[1760710313423,0.002,3778.4,3778.3,2.64669295]
[1760710313724,0.0012,3778.4,3778.0,2.902]
[1760710314087,0.0012,3778.4,3778.2,2.64673151]
[1760710314283,0.0012,3778.4,3778.3,2.64669295]
[1760710314488,0.0012,3778.4,3778.3,3.24607225]
[1760710314721,0.0012,3778.4,3778.3,0.5993793]
[1760710315025,0.0012,3778.4,3778.3,3.09179295]
[1760710315194,0.0012,3778.4,3778.3,3.11825987]
[1760710315394,0.0012,3778.4,3778.3,10.15701887]
[1760710315598,0.0012,3778.4,3778.3,9.58178495]
[1760710315937,0.002,3779.2,3779.1,2.64613267]
[1760710316086,0.002,3780.1,3779.6,24.41623262]
[1760710316428,0.002,3780.1,3780.0,2.64550264]
[1760710316820,0.002,3780.1,3780.0,6.18010264]
[1760710317107,0.002,3780.1,3780.0,15.15914064]
[1760710317425,0.002,3780.1,3780.0,4.37350264]
[1760710317586,0.002,3780.1,3780.0,8.44697219]
[1760710317791,0.002,3780.1,3780.0,9.05411717]
[1760710319339,0.002,3780.1,3780.0,6.15411717]
[1760710319485,0.002,3780.1,3780.0,9.05411717]
[1760710320116,0.002,3780.1,3780.0,15.88774717]
[1760710320517,0.002,3780.1,3780.0,6.15411717]
[1760710320699,0.002,3780.1,3780.0,7.27250264]
[1760710320903,0.002,3780.1,3780.0,2.899]
[1760710321115,0.002,3780.1,3780.0,5.54450264]
[1760710321494,0.002,3780.1,3780.0,2.64550264]
[1760710321708,0.002,3780.1,3780.0,5.54350264]
[1760710321909,0.002,3780.1,3779.3,0.4298]
[1760710322112,0.002,3780.1,3779.3,0.28841733]
[1760710322353,2.64743438,3780.1,3778.9,2.493]
[1760710322643,0.0995,3780.0,3778.6,0.02646482]
[1760710322794,0.002,3780.1,3778.7,0.02646412]
[1760710322795,0.1497,3779.9,3778.7,0.02646412]
[1760710322995,0.1497,3779.9,3779.3,2.64597015]
[1760710323195,0.1497,3779.9,3779.2,2.64604667]
[1760710323392,0.1497,3779.9,3778.4,0.4298]
[1760710323707,0.1497,3779.9,3779.5,2.64583218]
[1760710323902,0.002,3780.1,3779.6,2.67223864]
[1760710324101,0.002,3780.1,3780.0,2.64550264]
[1760710324493,0.002,3780.1,3780.0,3.07530264]
[1760710324694,0.002,3780.5,3780.4,2.64522272]
[1760710324933,2.64368082,3782.7,3781.8,2.64420157]
[1760710325239,0.2551,3783.1,3781.9,0.02644173]
[1760710325535,0.1043,3783.8,3782.0,2.897]
[1760710325710,0.1043,3783.8,3782.1,0.2164]
[1760710325916,0.1048,3783.6,3781.3,0.2164]
[1760710326100,0.1048,3783.5,3781.4,0.793]
[1760710326302,0.1048,3783.5,3782.1,2.64398249]
[1760710326501,2.64325839,3783.3,3782.2,0.26439825]
[1760710326825,1.728,3782.9,3780.3,0.2164]
[1760710327732,0.43241254,3781.9,3780.6,2.897]
[1760710328044,0.43241254,3781.9,3779.0,2.77846938]
[1760710328045,0.1754,3780.7,3779.8,2.64564262]
[1760710328210,0.1754,3780.7,3779.8,1.728]
[1760710328401,0.1754,3780.7,3779.5,0.4298]
[1760710328728,0.1003,3781.3,3779.6,2.896]
[1760710328926,1.728,3781.6,3779.7,2.06058]
[1760710329235,2.64446086,3781.5,3779.8,0.4298]
[1760710329437,0.0460967,3781.8,3779.8,0.4298]
[1760710329638,0.1011,3781.5,3779.8,0.4298]
[1760710329857,2.64495748,3780.8,3780.0,2.64548983]
[1760710330136,2.64468644,3781.2,3780.3,2.64526316]
[1760710330308,0.14719761,3781.4,3779.3,1.728]
[1760710330505,0.14719761,3781.4,3779.5,1.728]
[1760710330737,0.14719761,3781.4,3779.4,0.4298]
[1760710330738,0.04609761,3781.4,3779.4,0.4298]
[1760710330937,0.04609761,3781.4,3778.8,1.728]
[1760710330938,0.6336,3781.2,3778.7,0.2164]
[1760710331145,13.25684135,3781.8,3778.3,0.4298]
[1760710331146,2.64571262,3779.7,3778.9,2.64626981]
[1760710331337,2.64532734,3780.3,3779.0,0.02646202]
[1760710331504,1.728,3780.6,3779.9,2.64555021]
[1760710331505,0.04610799,3780.6,3779.9,2.64555021]
[1760710331700,0.1752,3780.9,3779.1,0.2164]
[1760710331911,0.1752,3780.9,3779.1,2.3742]
[1760710332140,2.64494286,3780.8,3779.6,2.64575032]
[1760710332302,2.64494286,3780.8,3780.2,0.132]
[1760710332303,2.6452927,3780.3,3780.2,0.132]
[1760710332537,2.6452927,3780.3,3779.1,0.6462]
[1760710332538,0.6336,3780.3,3778.0,0.2164]
[1760710332766,0.1005,3780.2,3779.0,2.6461639]
[1760710332943,0.29206429,3780.7,3779.0,2.6461639]
[1760710332944,0.6336,3780.6,3779.2,2.64600286]
[1760710333271,0.1752,3780.9,3779.4,2.64585277]
[1760710333272,0.04610782,3780.4,3779.4,2.64585277]
[1760710333570,2.64536467,3780.2,3778.7,0.4298]
[1760710333770,0.04610782,3780.4,3779.7,2.64566142]
[1760710333970,2.69139013,3780.4,3779.4,2.64588278]
[1760710334173,0.04610782,3780.4,3778.8,2.64634275]
[1760710334335,0.04610782,3780.4,3778.9,0.506877]
[1760710334536,0.1752,3780.9,3779.1,2.3616]
[1760710334844,0.1752,3780.9,3779.2,0.2164]
[1760710335053,1.9032,3780.9,3780.1,2.64538044]
[1760710335263,1.9032,3780.9,3780.3,2.64526519]
[1760710335264,0.1752,3780.9,3780.3,2.64526519]
[1760710335441,0.1005,3781.5,3780.5,2.64515275]
[1760710335644,0.27448928,3781.4,3780.1,0.2164]
[1760710335945,2.00248928,3781.4,3780.7,2.64496788]
[1760710336167,2.00248928,3781.4,3780.4,2.64522272]
[1760710336168,2.91905074,3781.4,3780.4,2.64522272]
[1760710336347,0.27448928,3781.4,3779.7,0.4298]
[1760710336540,0.04609415,3782.4,3779.9,2.64550751]
[1760710336541,2.64459312,3781.3,3779.9,2.64550751]
[1760710336736,2.64510184,3780.6,3779.8,2.64559311]
[1760710336939,2.64510184,3780.6,3779.2,0.2164]
[1760710336940,0.1013,3781.2,3779.7,0.4298]
[1760710337245,2.64467601,3781.2,3780.4,2.64522272]
[1760710337445,0.102,3781.6,3780.4,2.64522272]
[1760710337646,0.173,3780.5,3780.1,2.64543065]
[1760710337846,2.74651961,3781.5,3780.2,0.02645362]
[1760710337847,2.64473176,3781.2,3780.2,0.02645362]
[1760710338047,0.26447318,3781.1,3779.7,0.45625712]
[1760710338271,0.1581,3781.9,3779.8,0.02645642]
[1760710338473,0.1581,3781.9,3779.9,0.4298]
[1760710338768,0.7363,3781.8,3779.4,0.4298]
[1760710338970,0.6336,3781.6,3780.1,2.6453678]
[1760710339169,2.64454123,3781.4,3779.4,0.4298]
[1760710339369,2.90905712,3781.3,3780.3,2.64524102]
[1760710339572,1.728,3781.2,3779.5,0.23742]
[1760710339737,3.27840296,3781.0,3779.5,0.23742]
[1760710340071,3.27840296,3781.0,3779.2,0.2164]
[1760710340072,1.728,3780.8,3779.9,2.64555731]
[1760710340276,0.275,3780.9,3779.7,2.64571262]
[1760710340576,0.275,3780.9,3779.6,2.64578142]
[1760710340767,2.64527839,3780.4,3779.6,2.64578142]
[1760710340961,2.64507088,3780.7,3779.2,0.2164]
[1760710341142,0.55650811,3780.6,3779.3,0.32923072]
[1760710341341,1.728,3780.8,3779.9,2.64551568]
[1760710341579,1.728,3780.8,3779.3,0.32923072]
[1760710341580,2.64516529,3780.5,3779.7,2.64565229]
[1760710341741,2.64520695,3780.5,3779.6,2.64573491]
[1760710341942,2.64543212,3780.2,3779.4,2.64590343]
[1760710342143,2.64543266,3780.1,3778.3,0.001]
[1760710342339,4.37373658,3779.7,3778.4,2.64662244]
[1760710342538,2.64619444,3779.1,3778.6,0.132]
[1760710342774,0.132,3779.2,3778.3,0.001]
[1760710342775,2.64624942,3779.0,3778.3,0.001]
[1760710342982,0.1556,3778.7,3778.3,0.001]
[1760710343180,2.6464966,3778.6,3778.3,0.001]
[1760710343496,0.28020966,3778.6,3778.3,2.64768563]
[1760710343642,0.258,3779.7,3778.4,0.4311]
[1760710343841,1.728,3779.6,3778.4,0.4311]
[1760710344177,1.728,3779.6,3778.3,0.001]
[1760710344178,0.099,3779.5,3778.3,0.001]
[1760710344376,0.1606,3779.6,3778.3,0.001]
[1760710344576,0.1606,3779.6,3778.6,2.64643283]
[1760710344577,2.64597265,3779.4,3778.6,2.64643283]
[1760710344745,0.1934719,3779.5,3778.3,0.001]
[1760710345267,2.64625917,3779.0,3778.3,0.001]
[1760710345570,0.2924719,3779.5,3778.3,0.001]
[1760710345571,2.6466229,3778.4,3778.3,0.001]
[1760710345779,0.099,3778.9,3778.3,0.001]
[1760710345965,2.7456229,3778.4,3778.3,0.001]
[1760710346141,5.1072229,3778.4,3778.3,0.001]
[1760710346978,0.6336,3778.3,3775.3,0.001]
[1760710347178,2.64806624,3776.4,3775.3,0.001]
[1760710347475,0.6336,3776.9,3775.3,0.001]
[1760710347652,0.1664,3776.3,3775.3,0.001]
[1760710347973,2.64794943,3776.6,3775.5,2.64864144]
[1760710348268,1.728,3776.5,3775.6,2.64858321]
[1760710348472,1.728,3776.3,3775.6,0.02648585]
[1760710348674,2.64836396,3776.0,3775.3,0.001]
[1760710348850,2.64836615,3776.0,3775.3,0.001]
[1760710349176,0.099,3776.6,3775.3,0.001]
[1760710349391,0.099,3776.6,3775.3,0.02748796]
[1760710349392,1.728,3776.6,3775.3,0.02748796]
[1760710349574,2.17019821,3776.5,3775.3,0.4321]
[1760710349750,0.04615489,3776.7,3775.3,2.64978514]
[1760710349751,2.64829415,3776.1,3775.3,2.64978514]
[1760710349951,2.64829415,3776.1,3775.4,2.64871039]
[1760710350174,0.04615489,3776.7,3775.5,0.02648655]
[1760710350387,0.04615489,3776.7,3775.6,0.4311]
[1760710350561,0.099,3777.6,3775.7,0.02648515]
[1760710350562,0.1657,3777.6,3775.7,0.02648515]
[1760710350886,0.0461493,3777.4,3775.8,2.64844536]
[1760710351051,0.0461493,3777.4,3776.1,2.64823335]
[1760710351249,0.0461493,3777.4,3776.2,0.2196]
[1760710351478,0.0461493,3777.4,3776.9,2.64767078]
[1760710351672,0.0461493,3777.4,3776.5,2.64793876]
[1760710351882,2.64739364,3777.3,3776.5,2.64790518]
[1760710352053,0.0461493,3777.4,3776.2,0.2196]
[1760710352254,0.0461493,3777.4,3776.3,0.45758094]
[1760710352688,0.0461493,3777.4,3777.0,2.64755221]
[1760710352979,0.0461493,3777.4,3777.1,0.132]
[1760710353391,2.82553987,3777.4,3776.8,0.132]
[1760710353745,1.9061493,3777.4,3776.8,2.77972742]
[1760710353940,0.6500598,3777.4,3776.8,2.77972742]
[1760710354145,0.86254713,3778.9,3777.3,2.86699364]
[1760710354347,0.41523153,3778.9,3777.4,0.02647323]
[1760710354585,0.04612928,3779.8,3777.7,2.64711332]
[1760710354797,0.2627,3780.0,3778.6,2.64643823]
[1760710355010,2.64590607,3779.5,3778.7,2.64641047]
[1760710355228,2.64590607,3779.5,3778.0,1.728]
[1760710355229,0.54522203,3779.4,3778.6,2.64647075]
[1760710355408,0.54522203,3779.4,3777.8,0.4311]
[1760710355589,2.64621038,3779.0,3777.9,2.64691346]
[1760710355910,0.6336,3778.6,3776.6,1.728]
[1760710356113,2.64683608,3778.1,3777.3,2.6473421]
[1760710356309,0.6336,3778.7,3777.2,0.2196]
[1760710356476,0.1644,3778.9,3777.3,0.02647393]
[1760710356680,0.1644,3778.9,3777.2,0.2196]
[1760710356901,0.1644,3778.9,3777.7,2.64708419]
[1760710356902,1.728,3778.8,3777.7,2.64708419]
[1760710357104,0.6336,3778.8,3776.0,1.728]
[1760710357308,0.0997,3778.7,3776.4,0.4311]
[1760710357623,0.41513629,3779.5,3778.6,0.2196]
[1760710358117,0.1663,3779.6,3777.7,0.4311]
[1760710358281,0.099,3779.5,3778.4,2.6466021]
[1760710358610,0.44749611,3779.6,3778.6,2.6464255]
[1760710358799,0.44749611,3779.6,3778.7,2.64640301]
[1760710358800,2.64585365,3779.5,3778.7,2.64640301]
[1760710358986,0.1663,3779.6,3778.1,0.4311]
[1760710359312,2.64645615,3778.7,3777.8,2.64703736]
[1760710359511,0.099,3779.5,3778.6,2.64642335]
[1760710359721,0.1663,3779.6,3777.8,0.4311]
[1760710360012,2.64585847,3779.5,3778.4,2.64659579]
[1760710360209,2.64585847,3779.5,3777.5,2.647244]
[1760710360210,0.6336,3779.3,3777.3,0.6507]
[1760710360376,2.28622794,3779.4,3777.3,2.3787]
[1760710360715,0.6336,3778.9,3777.3,0.6507]
[1760710360915,0.6336,3778.7,3777.5,2.64720286]
[1760710361098,1.728,3778.7,3777.6,0.02647183]
[1760710361302,2.80514902,3778.8,3777.2,0.6507]
[1760710361303,0.4525149,3778.6,3777.2,0.6507]
[1760710361503,2.64629471,3778.9,3777.6,0.4311]
[1760710361816,2.80461401,3778.7,3777.6,2.64711722]
[1760710361999,0.6336,3779.0,3778.1,2.64676548]
[1760710362179,2.64634642,3778.8,3778.0,2.64689164]
[1760710362508,2.00839464,3778.7,3777.5,0.4311]
[1760710362709,2.00839464,3778.7,3778.0,2.64684531]
[1760710362887,0.1576,3778.9,3777.8,0.02647043]
[1760710363088,1.77412857,3779.1,3778.4,2.64656738]
[1760710363287,0.04612857,3779.1,3777.9,0.4311]
[1760710363730,2.64562113,3779.9,3778.0,0.02646903]
[1760710363893,2.64598529,3779.4,3778.5,2.64649616]
[1760710364095,0.69717926,3779.3,3778.1,0.45756833]
[1760710364294,0.2127168,3779.9,3778.1,0.45756833]
[1760710364615,0.1004,3780.4,3778.1,0.45756833]
[1760710364781,2.64545495,3780.1,3778.2,2.646763]
[1760710364984,0.1647,3781.0,3778.4,0.6336]
[1760710365179,0.1647,3781.0,3779.7,2.64566365]
[1760710365429,2.64494814,3780.8,3778.9,2.64627272]
[1760710365599,0.29451091,3780.7,3780.0,2.64544603]
[1760710365914,2.64516869,3780.5,3779.4,0.4311]
[1760710366106,0.1647,3781.0,3779.5,0.2196]
[1760710366303,2.64687901,3780.9,3779.5,0.2196]
[1760710366507,2.64498934,3780.8,3779.5,0.2196]
[1760710366711,0.002,3780.9,3780.2,2.64531242]
[1760710367014,0.002,3780.9,3779.6,0.02645782]
[1760710367015,1.728,3780.8,3779.9,2.64553178]
[1760710367321,2.64494286,3780.8,3779.5,0.2196]
[1760710367519,0.7346,3780.7,3779.0,0.2196]
[1760710367834,2.4626,3780.6,3778.2,0.2196]
[1760710368119,2.64578977,3779.6,3778.9,2.6462174]
[1760710368419,0.6336,3780.1,3778.5,0.4311]
[1760710368622,2.81171775,3779.7,3778.7,2.64639932]
[1760710368930,0.04611235,3780.4,3778.8,0.45756342]
[1760710369102,1.728,3780.3,3779.0,2.64620269]
[1760710369284,0.70644921,3780.3,3779.6,2.6457596]
[1760710369487,1.728,3780.1,3779.1,3.2967632]
[1760710369798,0.04611235,3780.4,3779.1,0.2196]
[1760710370064,0.168,3779.2,3778.4,1.728]
[1760710370245,0.7326,3780.3,3778.4,0.4311]
[1760710370246,0.6336,3779.6,3778.4,0.4311]
[1760710370446,0.6336,3779.6,3778.6,2.64643568]
[1760710370447,2.64596915,3779.4,3778.6,2.64643568]
[1760710370644,2.64596915,3779.4,3778.2,0.2196]
[1760710370645,0.60926518,3779.4,3778.2,0.2196]
[1760710370847,2.64589741,3779.5,3778.8,2.64633415]
[1760710371048,2.81301859,3779.7,3779.0,2.64616921]
[1760710371346,0.1666,3779.8,3778.2,0.2196]
[1760710371549,2.64627658,3778.9,3778.2,2.64672088]
[1760710371749,0.157,3778.9,3778.2,2.64672088]
[1760710372084,0.157,3778.9,3778.0,2.86649068]
[1760710372085,2.64606062,3779.3,3778.3,0.24816692]
[1760710372248,3.17524032,3779.3,3778.5,2.64648758]
[1760710372443,3.17524032,3779.3,3778.3,2.6466815]
[1760710372444,2.64619998,3779.1,3778.3,2.6466815]
[1760710372647,2.64607781,3779.2,3778.6,2.64647659]
[1760710373081,3.17520792,3779.3,3778.6,2.64647659]
[1760710373379,3.17520792,3779.3,3778.2,0.2217]
[1760710373380,3.17520327,3779.3,3778.5,2.64654927]
[1760710373580,0.31752033,3779.2,3778.6,2.64647426]
[1760710373886,2.64607231,3779.2,3778.5,2.64650476]
[1760710374083,0.04611899,3779.9,3778.4,0.4358]
[1760710374387,1.728,3780.3,3779.1,0.3537]
[1760710374559,0.132,3779.9,3779.5,2.77778472]
[1760710374884,0.132,3779.9,3779.5,0.132]
[1760710375083,0.132,3779.9,3778.2,1.9497]
[1760710375084,0.2682,3779.8,3778.2,0.2217]
[1760710375255,0.132,3779.3,3778.7,2.77836105]
[1760710375456,0.2682,3779.8,3778.2,0.2217]
[1760710375651,0.132,3779.0,3778.4,0.132]
[1760710376385,2.64588016,3779.5,3777.5,0.2217]
[1760710376386,2.64634834,3778.8,3777.5,0.2217]
[1760710376682,0.1685,3779.8,3777.6,3.10944738]
[1760710376983,1.728,3779.5,3779.1,2.64610613]
[1760710377182,0.1685,3779.8,3779.2,2.64606265]
[1760710377392,0.1685,3779.8,3778.7,0.2217]
[1760710377688,0.1687,3779.8,3778.8,2.64631672]
[1760710377985,0.1687,3779.8,3778.9,2.64624755]
[1760710377986,2.64582071,3779.6,3778.9,2.64624755]
[1760710378184,3.19192242,3779.5,3778.9,2.64626636]
[1760710378376,0.54601739,3779.5,3778.9,2.64626636]
[1760710378686,2.64596741,3779.4,3778.7,2.64640166]
[1760710378858,2.64592263,3779.4,3778.7,2.64638299]
[1760710379186,0.54601739,3779.5,3778.9,2.64625024]
[1760710379386,2.64571529,3779.7,3779.1,2.64609522]
[1760710379563,2.64585262,3779.5,3778.5,0.2217]
[1760710379765,2.92725004,3779.6,3778.9,2.64625658]
[1760710379962,2.64588168,3779.5,3778.8,2.64631005]
[1760710380169,0.28144153,3779.6,3778.5,0.2217]
[1760710380353,0.6336,3779.7,3778.2,0.4358]
[1760710380551,0.7333,3779.7,3778.2,0.6575]
[1760710380751,0.1687,3779.8,3778.3,0.02646692]
[1760710380984,2.64592683,3779.4,3778.5,2.64649961]
[1760710381189,2.81438654,3779.8,3778.2,0.2217]
[1760710381190,2.64617835,3779.1,3778.4,2.64660109]
[1760710381391,2.3616,3779.5,3778.2,0.2217]
[1760710381683,1.728,3779.6,3778.2,0.2217]
[1760710381890,2.6463911,3778.8,3778.1,2.64682414]
[1760710382091,0.6336,3779.4,3778.2,0.2276]
[1760710382383,2.64650802,3778.6,3777.7,2.64711332]
[1760710382589,0.6336,3778.8,3777.2,0.2196]
[1760710382752,2.3616,3778.6,3777.0,2.64760391]
[1760710382955,0.67972655,3778.6,3777.1,0.4631]
[1760710383491,0.67972655,3778.6,3776.9,0.2276]
[1760710383788,1.77412655,3778.6,3777.0,0.4631]
[1760710383990,2.69261777,3778.6,3777.9,2.64693664]
[1760710384195,2.64656635,3778.5,3777.8,2.64702878]
[1760710384393,1.728,3778.4,3777.8,2.64702878]
[1760710384691,1.728,3778.4,3777.9,2.64696873]
[1760710384886,0.24925921,3778.6,3777.9,0.4631]
[1760710385055,2.80263211,3778.9,3778.0,2.64690312]
[1760710385255,1.728,3779.5,3776.9,0.2276]
[1760710385256,2.74675169,3780.3,3778.1,0.71716833]
[1760710385469,2.74675169,3780.3,3778.9,2.64623114]
[1760710385470,2.64579075,3779.6,3778.9,2.64623114]
[1760710385693,2.74672945,3780.3,3779.1,2.64613267]
[1760710385694,0.002,3780.3,3779.1,2.64613267]
[1760710385890,2.64542457,3780.2,3779.5,2.64580263]
[1760710386064,0.52925869,3780.2,3779.2,2.87365577]
[1760710386387,2.64536267,3780.2,3779.4,2.6459128]
[1760710386588,0.002,3780.3,3779.4,0.4631]
[1760710386787,0.134,3780.3,3779.7,2.77765908]
[1760710386987,0.134,3780.3,3779.8,2.64558555]
[1760710387159,0.002,3780.3,3780.2,2.87296267]
[1760710387355,0.002,3780.3,3780.2,3.42480691]
[1760710387575,0.002,3780.3,3780.2,3.91436053]
[1760710387972,0.002,3780.9,3780.8,2.64494286]
[1760710388192,0.002,3781.3,3781.2,2.64466306]
[1760710388357,0.002,3781.3,3780.7,0.2276]
[1760710388798,0.002,3781.3,3780.7,0.58567]
[1760710389303,0.002,3781.3,3780.4,0.4631]
[1760710389465,0.002,3781.3,3781.2,2.64466306]
[1760710389968,0.002,3781.3,3781.2,3.10776306]
[1760710390304,0.41475945,3782.9,3781.2,3.10776306]
[1760710390305,2.64320088,3783.3,3781.2,3.13420969]
[1760710390467,2.64331554,3783.2,3782.4,2.64381695]
[1760710390666,0.04808605,3783.1,3782.6,0.2276]
[1760710390866,0.04808605,3783.1,3782.6,2.87128423]
[1760710391067,0.002,3783.1,3782.6,3.88589181]
[1760710391397,0.002,3783.1,3783.0,2.6434047]
[1760710391570,0.002,3783.1,3783.0,5.0050047]
[1760710391885,0.002,3783.7,3783.4,4.37112523]
[1760710392210,0.002,3783.7,3783.4,2.66955648]
[1760710392539,0.002,3783.7,3783.4,3.99547303]
[1760710392668,0.002,3783.7,3783.4,6.88347303]
[1760710392999,0.002,3783.7,3783.4,9.24507303]
[1760710393780,0.002,3783.7,3783.4,5.72347303]
[1760710394202,0.002,3783.7,3783.4,9.24507303]
[1760710394716,0.002,3784.1,3784.0,2.64270613]
[1760710394891,2.64105859,3786.4,3784.4,3.2760268]
[1760710394892,2.64104489,3786.4,3784.4,3.2760268]
[1760710395217,0.20883678,3787.3,3784.7,0.6336]
[1760710395366,0.20883678,3787.3,3784.6,2.64228716]
[1760710395367,0.1017,3786.9,3784.6,0.02642287]
[1760710395566,0.1017,3786.9,3784.3,0.2276]
[1760710395794,2.64166571,3785.5,3784.4,0.48952426]
[1760710395966,2.64144962,3785.8,3784.4,0.4631]
[1760710396162,0.28120496,3785.7,3784.4,0.4631]
[1760710396387,2.74401805,3785.6,3783.8,0.4631]
[1760710396588,2.64213741,3784.9,3784.0,2.64270499]
[1760710396788,0.1024,3785.6,3783.8,0.4631]
[1760710397007,0.28120496,3785.7,3783.8,0.4631]
[1760710397223,2.64214164,3784.9,3784.7,0.132]
[1760710397523,2.64214753,3784.8,3784.7,0.132]
[1760710397829,2.64200895,3785.0,3784.1,0.2276]
[1760710398031,0.58490802,3785.9,3784.1,0.2276]
[1760710398199,1.728,3785.4,3784.1,0.2276]
[1760710398398,2.64209611,3784.9,3784.1,0.2276]
[1760710398599,0.1695,3784.9,3784.2,2.64250095]
[1760710398798,2.81158988,3784.9,3784.1,2.87022591]
[1760710399003,0.1695,3784.9,3784.2,2.64255296]
[1760710399201,0.1695,3784.9,3784.1,0.2276]
[1760710399202,0.35584,3785.3,3784.1,0.2276]
[1760710399405,0.002,3787.0,3785.2,0.2276]
[1760710399608,0.002,3787.0,3786.0,2.64131008]
[1760710399609,0.04604086,3786.1,3786.0,2.64131008]
[1760710399811,0.002,3787.0,3786.4,2.64098567]
[1760710400008,0.002,3787.0,3786.0,1.01778475]
[1760710400009,0.002,3787.0,3786.5,0.02640961]
[1760710400525,0.002,3787.0,3786.9,2.64068235]
[1760710400693,0.002,3787.0,3786.7,0.02640821]
[1760710400889,0.002,3787.0,3786.7,2.64075647]
[1760710401092,0.002,3787.0,3786.9,2.64068235]
[1760710401354,0.002,3787.0,3786.9,4.39508917]
[1760710401667,0.002,3787.0,3786.9,5.47838917]
[1760710401817,0.002,3787.0,3786.9,5.45198235]
[1760710402014,0.002,3787.0,3786.9,4.81838235]
[1760710402215,0.002,3787.0,3786.2,0.4497]
[1760710402545,2.64263699,3787.0,3785.9,2.86907229]
[1760710402750,2.64263699,3787.0,3786.0,1.728]
[1760710402751,0.002,3787.0,3786.0,1.728]
[1760710402913,2.64129569,3786.1,3784.9,0.4497]
[1760710403120,0.0996,3786.3,3784.9,2.64205679]
[1760710403317,0.27406993,3786.2,3785.0,0.02642007]
[1760710403619,0.27406993,3786.2,3784.9,0.4497]
[1760710403620,0.0996,3786.3,3784.5,0.2277]
[1760710403816,0.0996,3786.3,3784.6,0.02642287]
[1760710404047,2.6409762,3786.5,3785.7,2.64151808]
[1760710404248,0.1456357,3786.9,3785.2,0.2277]
[1760710404433,2.64068528,3786.9,3785.3,1.10971798]
[1760710404637,0.002,3787.0,3786.3,2.64109344]
[1760710404950,2.64101592,3786.5,3785.4,0.5834418]
[1760710405146,0.002,3787.0,3785.8,2.64144886]
[1760710405317,0.002,3787.0,3785.4,0.5834418]
[1760710405666,0.002,3787.0,3785.8,2.64138971]
[1760710405970,2.64077595,3786.8,3785.8,2.90817034]
[1760710406133,0.002,3787.0,3785.8,0.26678063]
[1760710406337,0.002,3787.0,3785.4,0.5834418]
[1760710406338,2.6413874,3785.9,3785.4,0.1337418]
[1760710406539,2.64075208,3786.8,3785.2,0.2277]
[1760710406867,2.64115365,3786.3,3785.3,2.66821651]
[1760710407018,2.64115365,3786.3,3785.6,2.64158916]
[1760710407221,0.0996,3786.9,3785.2,0.2277]
[1760710407611,0.002,3787.0,3785.3,0.64527]
[1760710407854,0.002,3787.0,3786.2,0.132]
[1760710407855,2.64088614,3786.7,3786.2,0.132]
[1760710408054,2.64089446,3786.6,3786.2,0.132]
[1760710408377,2.64081754,3786.8,3786.2,0.132]
[1760710408522,0.132,3786.9,3786.2,0.132]
[1760710408723,0.1312,3786.9,3786.3,2.66745658]
[1760710408926,0.1312,3786.9,3786.3,0.026411]
[1760710409127,0.002,3787.0,3786.9,2.64068235]
[1760710409459,0.002,3787.4,3787.3,2.64040345]
[1760710409675,0.002,3787.4,3787.3,4.39480748]
[1760710409835,0.002,3787.4,3787.3,4.84450748]
[1760710410036,0.002,3787.4,3787.3,5.61577742]
[1760710410358,0.002,3787.4,3787.3,6.22297339]
[1760710410557,1e-08,3788.2,3788.1,2.63984583]
[1760710410739,1e-08,3788.2,3788.1,8.13754428]
[1760710410925,1e-08,3788.2,3788.1,9.63859878]
[1760710411873,1e-08,3788.2,3788.1,9.00499878]
[1760710412371,1e-08,3788.2,3788.1,7.92724583]
[1760710414022,1e-08,3788.2,3788.1,4.36784583]
[1760710414359,1e-08,3788.2,3788.1,4.81754583]
[1760710414698,1e-08,3788.2,3788.1,9.72043583]
[1760710414848,1e-08,3788.2,3788.1,4.36784583]
[1760710415034,1e-08,3788.2,3788.1,5.54472681]
[1760710415258,1e-08,3788.2,3788.1,10.88761836]
[1760710415565,1e-08,3788.2,3788.1,9.74093836]
[1760710415774,1e-08,3788.2,3788.1,10.34244236]
[1760710415959,1e-08,3788.2,3788.1,8.61444236]
[1760710416286,1e-08,3788.2,3788.1,13.85604236]
[1760710416503,1e-08,3788.2,3788.1,13.07516336]
[1760710417478,1e-08,3788.2,3788.1,12.23286936]
[1760710417682,1e-08,3788.2,3788.1,11.05901836]
[1760710418606,0.1741,3791.0,3790.5,2.63813213]
[1760710418930,2.63829826,3790.4,3789.0,2.879]
[1760710419063,2.63832773,3790.3,3790.0,0.1312]
[1760710419405,0.099,3790.2,3789.8,0.1312]
[1760710419606,0.1682,3789.9,3789.2,0.25409079]
[1760710419893,0.1741,3791.0,3790.4,2.63822801]
[1760710420061,2.81193489,3791.0,3790.3,2.63830018]
[1760710420255,2.81193489,3791.0,3789.4,1.728]
[1760710420256,0.1004,3790.9,3789.4,1.728]
[1760710420594,0.1004,3790.9,3788.5,2.63952901]
[1760710420595,2.63842985,3790.2,3787.9,2.63995347]
[1760710420763,2.63853801,3790.0,3788.7,2.63942777]
[1760710420962,0.1669,3789.9,3788.4,2.1777]
[1760710421263,2.63793556,3790.9,3788.4,2.1777]
[1760710421264,0.099,3790.6,3788.5,0.47609567]
[1760710421463,0.099,3790.6,3788.6,0.6336]
[1760710421789,2.73711735,3790.6,3789.9,2.63856846]
[1760710421977,2.73711735,3790.6,3789.7,2.63867098]
[1760710421978,2.63821157,3790.5,3789.7,2.63867098]
[1760710422295,0.37271174,3790.6,3789.6,2.63879043]